Cogmind - Beta 13 *** ADVENTURER MODE // 2024.04.10 @ 16:13:43 Player: Kitrana Result: Self-destructed Performance ------------- Evolutions (1) 500 Regions Visited (3) 600 Robots Destroyed (3) 15 Value Destroyed (29) 29 Prototype IDs (0) 0 Alien Tech Used (0) 0 Bonus (142) 142 TOTAL SCORE: 1286 Bonus ------- Follower Combat Kills 160 Friendly Fire -18 Cogmind --------- Core Integrity 298/400 Matter 297/300 Energy 100/100 System Corruption 0% Temperature Cool (6) Movement Treading (160) Location -9/Materials Parts ------- > --- POWER (2) -------- (None) > --- PROPULSION (2) --- Light Treads > --- UTILITY (3) ------ (None) > --- WEAPON (2) ------- Light Assault Rifle > --- INVENTORY (5) ---- High-capacity Matter Pod (88) Peak State ------------ > --- POWER ------------ (None) > --- PROPULSION ------- Light Treads Light Treads > --- UTILITY ---------- Improved Terrain Scanner > --- WEAPON ----------- Light Assault Rifle Mining Laser > --- INVENTORY -------- (None) [Rating: 7] Favorites ----------- Power Ion Engine Engine Ion Engine Propulsion Light Treads Treads Light Treads Utility Improved Terrain Scanner Device Improved Terrain Scanner Weapon Light Assault Rifle Ballistic Gun Light Assault Rifle Special Weapon Mining Laser Build | -11 -10 -10 -9 ------- Run | Yrd Mat Min Mat Slots Evolved 2 | . . . 2 Power 1 | . . . 1 Propulsion . | . . . . Utility 1 | . . . 1 Weapon . | . . . . Parts Attached 6 | 5 . . 1 Power 1 | . . . 1 Engine 1 | . . . 1 Core . | . . . . Reactor . | . . . . Propulsion 2 | 2 . . . Treads 2 | 2 . . . Leg . | . . . . Wheel . | . . . . Hover . | . . . . Flight . | . . . . Utility 1 | 1 . . . Device 1 | 1 . . . Storage . | . . . . Processor . | . . . . Hackware . | . . . . Protection . | . . . . Artifact . | . . . . Weapon 2 | 2 . . . Energy Gun . | . . . . Energy Cannon . | . . . . Ballistic Gun 1 | 1 . . . Ballistic Cannon . | . . . . Launcher . | . . . . Special Weapon 1 | 1 . . . Impact Weapon . | . . . . Slashing Weapon . | . . . . Piercing Weapon . | . . . . Special Melee Weapon . | . . . . Unidentified Prototypes . | . . . . Parts Lost 3 | . 1 . 2 Power 1 | . . . 1 Propulsion . | . . . . Utility 1 | . . . 1 Weapon 1 | . 1 . . Highest Loss Streak 2 | . 1 . 2 To Critical Strikes . | . . . . Average Slot Usage (%) 56 | . 71 57 50 Engine 1 | . . . 7 Treads 26 | . 28 28 21 Device 13 | . 14 14 11 Ballistic Gun 13 | . 14 14 11 Naked Turns . | . . . . Heaviest Build 7 | 3 3 2 7 Greatest Support 40 | 40 40 40 40 Greatest Overweight (x) . | . . . . Average Overweight (x) . | . . . . Largest Inventory Capacity 5 | 5 5 5 5 Average Capacity 5 | 5 5 5 5 Most Carried 2 | 1 . 1 2 Average Carried . | . . . 1 Final Capacity 5 | 5 5 5 5 Final Carried 1 | . . 1 1 Class Distribution -------------------- 100% | Mutant Dominant Class ---------------- Mutant | -10/Materials Mutant | -10/Mines Mutant | -9/Materials Resources | -11 -10 -10 -9 ----------- Run | Yrd Mat Min Mat Matter Collected 350 | 19 . 311 20 Remotely . | . . . . Salvage Created 115 | 102 . . 13 Parts 6 | 5 . . 1 Haulers Intercepted . | . . . . Recyclers Shooed 1 | 1 . . . Parts Field Recycled . | . . . . Retrieved Matter . | . . . . Parts Self-Destructed . | . . . . Prevented . | . . . . Kills | -11 -10 -10 -9 ------- Run | Yrd Mat Min Mat Combat Hostiles Destroyed . | . . . . Classes Destroyed 3 | 2 . . 1 Tunneler 1 | 1 . . . Recycler 1 | 1 . . . Watcher 1 | . . . 1 Best Kill Streak 2 | 2 . . 1 Combat Bots Only . | . . . . Max Kills in Single Turn 1 | 1 . . 1 Gunslinging . | . . . . Exploded . | . . . . Melee . | . . . . Uniques/NPCs Destroyed . | . . . . Combat | -11 -10 -10 -9 -------- Run | Yrd Mat Min Mat Hostile Shots Fired 64 | . 35 . 29 Missed 15 | . 12 . 3 Damage Taken 460 | . 134 . 326 Core 121 | . 19 . 102 Absorbed by Shields . | . . . . Ignored by Resistances 141 | . 46 . 95 Core Remaining (%) 96 | 100 . 92 . Volleys Fired 33 | 7 3 1 22 Largest 1 | 1 1 1 1 Hottest 20 | 20 20 20 20 Shots Fired 33 | 7 3 1 22 Gun 33 | 7 3 1 22 Cannon . | . . . . Launcher . | . . . . Special . | . . . . Kinetic 33 | 7 3 1 22 Thermal . | . . . . Explosive . | . . . . Electromagnetic . | . . . . Robot Hit Streak 10 | 4 6 . 10 Robot Miss Streak 4 | 1 1 . 4 Penetration Max . | . . . . Secondary Targets . | . . . . Shots Hit Robots 22 | 6 2 . 14 Core Hits 12 | 4 1 . 7 Critical Kills . | . . . . Critical Parts Destroyed . | . . . . Critical Strikes . | . . . . Melee Attacks . | . . . . Impact . | . . . . Slashing . | . . . . Piercing . | . . . . Sneak Attacks . | . . . . Combat Hostiles . | . . . . Follow-up Attacks . | . . . . Damage Inflicted 201 | 53 14 . 134 Guns 201 | 53 14 . 134 Cannons . | . . . . Explosions . | . . . . Melee . | . . . . Ramming . | . . . . Kinetic 201 | 53 14 . 134 Thermal . | . . . . Explosive . | . . . . Electromagnetic . | . . . . Impact . | . . . . Slashing . | . . . . Piercing . | . . . . Highest Corruption . | . . . . Average Corruption . | . . . . Corruption Purged . | . . . . Corruption Blocked . | . . . . Overload Shots . | . . . . Overflow Damage . | . . . . Projectiles . | . . . . Explosions . | . . . . Melee . | . . . . Knockbacks . | . . . . Impact . | . . . . Kinetic . | . . . . Secondary . | . . . . Self-Inflicted Damage . | . . . . Shots . | . . . . Rammed . | . . . . Targets Rammed . | . . . . Kicked . | . . . . Crushed . | . . . . Highest Temperature 6 | . . . 6 Average Temperature 3 | . . . 3 Received Heat Transfer 132 | . . . 132 Siege Activations . | . . . . Robots Corrupted . | . . . . Combat Hostiles . | . . . . Parts Fried . | . . . . Impact Corruptions . | . . . . Robots Melted . | . . . . Combat Hostiles . | . . . . Parts Melted . | . . . . Heat Transferred . | . . . . Parts Sabotaged . | . . . . Parts Stolen . | . . . . Parts Stripped . | . . . . Power Chain Reactions . | . . . . Alert | -11 -10 -10 -9 ------- Run | Yrd Mat Min Mat Peak Influence 93 | 10 5 74 93 Initial 24 | . 5 . 24 Average 18 | 9 4 8 58 Maximum Alert Level . | . . . . Low Security (%) 100 | 100 100 100 100 Level 1 . | . . . . Level 2 . | . . . . Level 3 . | . . . . Level 4 . | . . . . Level 5 . | . . . . High Security . | . . . . Max Security . | . . . . Squads Dispatched . | . . . . Investigation . | . . . . Extermination . | . . . . Reinforcement . | . . . . Assault . | . . . . Garrison . | . . . . Intercept . | . . . . Searches Triggered . | . . . . Construction Impeded . | . . . . Haulers Reinforced . | . . . . Active Scanning Responses . | . . . . Cargo Convoy Interrupts . | . . . . Stealth | -11 -10 -10 -9 --------- Run | Yrd Mat Min Mat Distress Signals 2 | . 1 . 1 Communications Jammed . | . . . . Distress Signals . | . . . . Times Spotted 20 | . 7 3 10 Peak Tracking Total 8 | . 8 3 5 Tactical Retreats . | . . . . Traps | -11 -10 -10 -9 ------- Run | Yrd Mat Min Mat Traps Triggered . | . . . . Indirectly . | . . . . Trap Hack Attempts . | . . . . Triggered . | . . . . Disarmed . | . . . . Reprogrammed . | . . . . Reused . | . . . . Traps Extracted . | . . . . Installed . | . . . . Triggered . | . . . . Machines | -11 -10 -10 -9 ---------- Run | Yrd Mat Min Mat Machines Disabled . | . . . . Max in Single Turn . | . . . . Machines Repaired . | . . . . Machines Dismantled . | . . . . Machines Sabotaged . | . . . . Overloaded Fab Kills . | . . . . Hacking | -11 -10 -10 -9 --------- Run | Yrd Mat Min Mat Machines Accessed . | . . . . Terminals . | . . . . Fabricators . | . . . . Repair Stations . | . . . . Recycling Units . | . . . . Scanalyzers . | . . . . Garrison Access . | . . . . Total Hacks . | . . . . Successful . | . . . . Failed . | . . . . Catastrophic . | . . . . Database Lockouts . | . . . . Manual . | . . . . Terminals . | . . . . Fabricators . | . . . . Repair Stations . | . . . . Recycling Units . | . . . . Scanalyzers . | . . . . Garrison Access . | . . . . Terminal Hacks . | . . . . Fabricator Hacks . | . . . . Repair Station Hacks . | . . . . Recycling Unit Hacks . | . . . . Scanalyzer . | . . . . Garrison Access Hacks . | . . . . Unauthorized Hacks . | . . . . Terminals . | . . . . Fabricators . | . . . . Repair Stations . | . . . . Recycling Units . | . . . . Scanalyzers . | . . . . Garrison Access . | . . . . Data Cores Recovered . | . . . . Used . | . . . . Hacking Detections . | . . . . Full Trace Events . | . . . . Feedback Events . | . . . . Feedback Blocked . | . . . . Robot Schematics Acquired . | . . . . Robots Built . | . . . . Authchips . | . . . . Time . | . . . . Total Robot Build Rating . | . . . . Part Schematics Acquired . | . . . . Parts Built . | . . . . Authchips . | . . . . Time . | . . . . Total Part Build Rating . | . . . . Parts Repaired . | . . . . Time . | . . . . Parts Recycled . | . . . . Recycled Matter . | . . . . Retrieved Matter . | . . . . Retrieved Components . | . . . . Parts Scanalyzed . | . . . . Part Schematics Acquired . | . . . . Parts Damaged . | . . . . Bothacking | -11 -10 -10 -9 ------------ Run | Yrd Mat Min Mat Used RIF Installer . | . . . . Robots Hacked . | . . . . Non-combat . | . . . . Combat . | . . . . Robot Hacks Applied . | . . . . Relay Couplers Released . | . . . . Fabnet Peak Effective % . | . . . . Robots Rewired . | . . . . Allies Hacked . | . . . . Hacks Repelled . | . . . . Allies | -11 -10 -10 -9 -------- Run | Yrd Mat Min Mat Total Allies 3 | . . 3 . Largest Group 3 | . . 3 2 Highest-Rated Group 70 | . . 70 62 Highest-Rated Ally 31 | . . 31 31 Total Orders . | . . . . Ally Attacks 27 | . . 10 17 Total Damage 445 | . . 190 255 Kills 8 | . . 3 5 Allies Corrupted . | . . . . Allies Melted . | . . . . Intel | -11 -10 -10 -9 ------- Run | Yrd Mat Min Mat Robot Analysis Total . | . . . . Derelict Logs Recovered 2 | . . 2 . Drone Launches . | . . . . Drone Recoveries . | . . . . Exploration | -11 -10 -10 -9 ------------- Run | Yrd Mat Min Mat Turns Passed 1104 | 195 59 625 225 Spaces Moved 556 | 26 34 386 110 Core 5 | 5 . . . Treads 551 | 21 34 386 110 Legs . | . . . . Wheels . | . . . . Hover . | . . . . Flight . | . . . . Fastest Speed 50 | 50 160 160 160 Average Speed 159 | 138 160 160 160 Slowest Speed 160 | 160 160 160 160 Overloaded Moves . | . . . . Propulsion Burnouts . | . . . . Robots Hopped . | . . . . Cave-ins Triggered . | . . . . Exploration Rate (%) 28 | 5 9 89 11 Regions Visited 3 Branch Regions 1 Pre-discovered Areas . | . . . . Known Exits Taken . | . . . . Unknown Exits Taken 3 | 1 1 1 . Scrap Searched 1 | . . 1 . Spaces Dug . | . . . . Terrain Destroyed . | . . . . Melee . | . . . . Projectile . | . . . . AOE . | . . . . Terrain Rammed . | . . . . Walls Destroyed . | . . . . Machines Disabled . | . . . . Actions | -11 -10 -10 -9 --------- Run | Yrd Mat Min Mat Total 749 | 179 36 393 141 Wait 150 | 137 . 6 7 Move 553 | 25 33 385 110 Hop . | . . . . Pick Up 7 | 5 . 1 1 Fast Attach . | . . . . Attach 6 | 5 . . 1 Detach . | . . . . Swap . | . . . . Drop . | . . . . Fire 33 | 7 3 1 22 Melee . | . . . . Ram . | . . . . Kick . | . . . . Crush . | . . . . Escape Stasis . | . . . . Rewire . | . . . . Trap . | . . . . Miscellaneous . | . . . . Route ------- -11/Scrapyard -10/Materials -10/Mines (discovered 2 exits: [*Mat x2]) -9/Materials (discovered 1 exit: Sto) History --------- Turn | Location | Event 17 | -11/Scrapyard | Discovered new exit (range 13) 196 | -11/Scrapyard | Entered Materials 232 | -10/Materials | Discovered new exit (range 14) 255 | -10/Materials | Entered Mines 311 | -10/Mines | Build established: Mutant 369 | -10/Mines | Learned Materials trap positions 414 | -10/Mines | Discovered new exit (range 13) 788 | -10/Mines | Discovered new exit (range 10) 873 | -10/Mines | Escorted by a lone wolf Derelict 880 | -10/Mines | Entered Materials 880 | -9/Materials | Accompanied by 2 allies 880 | -9/Materials | Evolved 2 slots: Power x1, Utility x1 881 | -9/Materials | Identified exit to Storage 882 | -9/Materials | Loaded intel: 16 trap records 885 | -9/Materials | Led the pair of lost Derelicts to an unsafe place 1105 | -9/Materials | Self-destructed Last Messages --------------- W-16 Scout destroyed. R-06 Scavenger collects Wheel. R-06 Scavenger collects Terrain Scan Processor. R-06 Scavenger collects Sensor Array. R-06 Scavenger collects Hover Unit. R-06 Scavenger collects Signal Interpreter. Acquired 20 matter. R-06 Scavenger collects Hover Unit. R-06 Scavenger collects Wheel. W-16 Scout distress signal alerts nearby ally. MA-R24(g) destroyed. G-34 Mercenary destroyed. IZ-XCF(g): "Mission, incomplete...*fzzt*" IZ-XCF(g) destroyed. R-06 Scavenger collects Lgt. Angular Momentum Engine. W-16 Scout destroyed. R-06 Scavenger collects Carbon-fiber Leg. Lgt. Treads severed. Ion Engine destroyed. Imp. Terrain Scanner destroyed. Map ----- +----------------------------------------------------+ | | | | | | | | | | | | | | | | | #############????????????????????????????????????? | | """ """ ##?????????#??????????????????????????? | | """ """ #??#???????##?????????????????????????? | | """ """ #???##????????????????????????????????? | | #???????????????#?#?#??#??????????????? | | ##########????????????????????????????? | | ########+### #???#????????????????????????? | | ###### # """ T #????????????????????????????? | | # """ #????????????????????????????? | | + """ #?????????#??????????????????? | | # #???#?????#??????????????????? | | ###### # """ #???######?#?????????????????? | | ####### ## """ #??##!!!!###?????????????????? | | # ## """ #??#! !#???#??????????????? | | # ## ##?# #??#???????????????? | | + ############## ##?????????????????? | | # g #?????????????????? | | # @l %* #?????????????????? | | # % % gg #?????????????????? | | # ###+##############%= #?????????????????? | | # #?? ?????????#??!=!#?????????#???????? | | # #?"?" ???????????[[%#?????????????????? | | +###### #?"?? ?????#????%=*#???? ????????????? | | ????? #???"? ?#???????? ? ???????????????? | | ????? +??? ?? #?#??#???? ????????????????? | | ???? #?"?? ?? #?#??????? ???????????????? | | ??? #### #?????? ?##???????? ??????????????? | | ?? #??# #??????? ??????????? ?????????????? | | ? ?#??? #?????????? ????????###### ????????????? | | ?? ????? #??????????????????????????????????????? | | ????????? #??^???????????????????????????????????? | | ????????? +^?^????^??????????????????????????????? | | ?????????#??^????^???????"???????????????????????? | | ?????????????????????????????????????????????????? | | ?????????????????????????????????????????????????? | | ?????????????????????????????????????????????????? | | ?????????????????????????????????????????????????? | | ?????????????????????????????????????????????????? | | ?????????????????????????????????????>???????????? | | ?????????????????????????????????????????????????? | | ?????????????????????????????????????????????????? | | ?????????????????????????????????????????????????? | +----------------------------------------------------+ Best States ------------- Heat Dissipation 28 Energy Generation 10 Energy Capacity 250 Matter Stores 300 Matter Capacity 300 Sight Range 16 Terrain Scan Range 16 Terrain Scan Density 10 Resistance: KI 20 Resistance: TH 20 Resistance: EX 20 Resistance: EM 20 Resistance: I 20 Resistance: S 20 Resistance: P 20 Evasion (%) 40 Recoil Reduction 2 Offensive Hacking 10 Item Schematics ----------------- None Robot Schematics ------------------ None Fabricated ------------ Nothing Alien Tech Used ----------------- None Achievements -------------- None Challenges ------------ None Game ------ Seed HugeImprinterBeam Manual? 0 Play Time 00:11:52 Cumulative 4.8 hours Start 2024.04.10 @ 16:02:33 End 2024.04.10 @ 16:13:43 Sessions 1 Manual Loads 0 Difficulty Adventurer Special Mode None Game No. 7 Rogue 0 Adventurer 7 Explorer 0 Win Type - Total 0 Types 0/0/0/0/0/0/0/0/0 Lore% 2 Gallery% 8 Achievement% 13 Wizard Run 0 Options --------- Layout 1 ASCII 0 Keyboard 0 Movement Mouse Keybinds 0 Fullscreen 0 Font 20/SmallcapsGlow Map View 64x42 Zoom Use 0% Tactical HUD 1 Map Filters NONE Filters NONE Steam 1 RUN: fd6bbc4f-bba9-4bdc-a29a-c8060bd49853